[Event "Early-Titled-Tuesday-Blitz-February-27-2024"]
[Site "Chess.com"]
[Date "2024.02.27"]
[Round "7"]
[White "averageFM"]
[Black "LeoLV10"]
[Result "1-0"]
[WhiteElo "2630"]
[BlackElo "2473"]
[TimeControl "180+1"]
[EndTime "9:13:37 PST"]
[Termination "averageFM won by resignation"]

1. d4 {[%clk 0:03:00.9]} 1... Nf6 {[%clk 0:02:59.9]} 2. Nc3 {[%clk 0:03:00.4]}
2... e6 {[%clk 0:03:00.6]} 3. e4 {[%clk 0:02:58.4]} 3... d5 {[%clk 0:02:58.4]}
4. f3 {[%clk 0:02:58.1]} 4... c6 {[%clk 0:02:57.4]} 5. Bg5 {[%clk 0:02:49.7]}
5... Be7 {[%clk 0:02:54.1]} 6. e5 {[%clk 0:02:49.1]} 6... Nfd7 {[%clk
0:02:54.1]} 7. Bxe7 {[%clk 0:02:49]} 7... Qxe7 {[%clk 0:02:54.8]} 8. Bd3 {[%clk
0:02:46.3]} 8... b6 {[%clk 0:02:55.1]} 9. Nge2 {[%clk 0:02:41.4]} 9... Ba6
{[%clk 0:02:53.7]} 10. O-O {[%clk 0:02:40]} 10... g6 {[%clk 0:02:47.4]} 11. a3
{[%clk 0:02:32.4]} 11... h5 {[%clk 0:02:46.1]} 12. b4 {[%clk 0:02:27.1]} 12...
h4 {[%clk 0:02:14]} 13. Bxa6 {[%clk 0:02:26.3]} 13... Nxa6 {[%clk 0:02:13.6]}
14. b5 {[%clk 0:02:26.3]} 14... Nc7 {[%clk 0:01:57]} 15. bxc6 {[%clk 0:02:23.2]}
15... Nb8 {[%clk 0:01:55.5]} 16. Qd3 {[%clk 0:02:17.5]} 16... Nxc6 {[%clk
0:01:53.2]} 17. Nb5 {[%clk 0:02:17.4]} 17... Nxb5 {[%clk 0:01:51.9]} 18. Qxb5
{[%clk 0:02:18.3]} 18... Qd7 {[%clk 0:01:52.1]} 19. c4 {[%clk 0:02:12.3]} 19...
Nxe5 {[%clk 0:01:50.9]} 20. dxe5 {[%clk 0:02:10.9]} 20... Qxb5 {[%clk
0:01:48.8]} 21. cxb5 {[%clk 0:02:10.8]} 21... Rh5 {[%clk 0:01:43.2]} 22. f4
{[%clk 0:02:09.8]} 22... a6 {[%clk 0:01:41]} 23. a4 {[%clk 0:02:08.3]} 23... g5
{[%clk 0:01:40.1]} 24. a5 {[%clk 0:02:03.1]} 24... axb5 {[%clk 0:01:34.8]} 25.
axb6 {[%clk 0:02:01.9]} 25... Rb8 {[%clk 0:01:35.3]} 26. Nd4 {[%clk 0:01:56.7]}
26... Rxb6 {[%clk 0:01:28.1]} 27. Ra8+ {[%clk 0:01:53.4]} 27... Ke7 {[%clk
0:01:28.1]} 28. fxg5 {[%clk 0:01:45.7]} 28... Rxg5 {[%clk 0:01:27.4]} 29. Ra7+
{[%clk 0:01:45.1]} 29... Ke8 {[%clk 0:01:25.3]} 30. Rfxf7 {[%clk 0:01:39]} 30...
Rxe5 {[%clk 0:01:25.5]} 31. Rh7 {[%clk 0:01:37.6]} 1-0

[Event "Early-Titled-Tuesday-Blitz-February-27-2024"]
[Site "Chess.com"]
[Date "2024.02.27"]
[Round "7"]
[White "JonasEilenberg"]
[Black "ValentinDragnev"]
[Result "0-1"]
[WhiteElo "2554"]
[BlackElo "2734"]
[TimeControl "180+1"]
[EndTime "9:13:39 PST"]
[Termination "ValentinDragnev won by resignation"]

1. e4 {[%clk 0:03:00.9]} 1... e6 {[%clk 0:02:59.9]} 2. d4 {[%clk 0:02:58.3]}
2... d5 {[%clk 0:02:58.2]} 3. e5 {[%clk 0:02:58.9]} 3... c5 {[%clk 0:02:58.3]}
4. c3 {[%clk 0:02:59.5]} 4... Nc6 {[%clk 0:02:57.7]} 5. Nf3 {[%clk 0:03:00.1]}
5... Bd7 {[%clk 0:02:50.7]} 6. Be2 {[%clk 0:02:58.7]} 6... Qb6 {[%clk
0:02:44.1]} 7. dxc5 {[%clk 0:02:54.2]} 7... Bxc5 {[%clk 0:02:42.9]} 8. b4 {[%clk
0:02:52.1]} 8... Bxf2+ {[%clk 0:02:39.9]} 9. Kf1 {[%clk 0:02:52.5]} 9... Be3
{[%clk 0:02:38]} 10. Bb2 {[%clk 0:02:20.8]} 10... Nh6 {[%clk 0:02:20.8]} 11. a4
{[%clk 0:02:19.7]} 11... a5 {[%clk 0:02:14.2]} 12. b5 {[%clk 0:02:19.7]} 12...
Ng4 {[%clk 0:02:03.5]} 13. bxc6 {[%clk 0:01:20.8]} 13... bxc6 {[%clk 0:02:03.1]}
14. Qc2 {[%clk 0:01:03.7]} 14... Bc1 {[%clk 0:01:48.4]} 15. Ke1 {[%clk 0:00:40]}
15... Qf2+ {[%clk 0:01:47.6]} 16. Kd1 {[%clk 0:00:40.5]} 16... Ne3+ {[%clk
0:01:48.5]} 17. Kxc1 {[%clk 0:00:41.3]} 17... Nxc2 {[%clk 0:01:49.2]} 0-1

[Event "Early-Titled-Tuesday-Blitz-February-27-2024"]
[Site "Chess.com"]
[Date "2024.02.27"]
[Round "7"]
[White "Better_Chess_Faster"]
[Black "MIss_MIaMI"]
[Result "1-0"]
[WhiteElo "2164"]
[BlackElo "2382"]
[TimeControl "180+1"]
[EndTime "9:13:40 PST"]
[Termination "Better_Chess_Faster won on time"]

1. d4 {[%clk 0:03:00.9]} 1... c5 {[%clk 0:02:06.2]} 2. d5 {[%clk 0:02:56.1]}
2... g6 {[%clk 0:02:06]} 3. Nc3 {[%clk 0:02:54.8]} 3... Bg7 {[%clk 0:02:06.5]}
4. e4 {[%clk 0:02:52.3]} 4... a6 {[%clk 0:02:06.5]} 5. a4 {[%clk 0:02:51.3]}
5... d6 {[%clk 0:02:06.7]} 6. Nf3 {[%clk 0:02:49.8]} 6... Bg4 {[%clk 0:02:02.5]}
7. h3 {[%clk 0:02:48.8]} 7... Bxf3 {[%clk 0:02:02.9]} 8. Qxf3 {[%clk 0:02:49]}
8... b6 {[%clk 0:02:03.5]} 9. Bd2 {[%clk 0:02:42.2]} 9... Nf6 {[%clk 0:01:53.6]}
10. Bc4 {[%clk 0:02:37.4]} 10... Nbd7 {[%clk 0:01:51.1]} 11. Qe2 {[%clk
0:02:29.2]} 11... Qc8 {[%clk 0:01:46.7]} 12. O-O {[%clk 0:02:24.8]} 12... O-O
{[%clk 0:01:44.8]} 13. Rad1 {[%clk 0:02:13.8]} 1-0

[Event "Early-Titled-Tuesday-Blitz-February-27-2024"]
[Site "Chess.com"]
[Date "2024.02.27"]
[Round "7"]
[White "BursaBBSatranc"]
[Black "annamaja"]
[Result "1-0"]
[WhiteElo "2626"]
[BlackElo "2417"]
[TimeControl "180+1"]
[EndTime "9:13:52 PST"]
[Termination "BursaBBSatranc won by resignation"]

1. d4 {[%clk 0:03:00.9]} 1... d5 {[%clk 0:02:56]} 2. Bf4 {[%clk 0:03:00.7]} 2...
Nf6 {[%clk 0:02:55.8]} 3. e3 {[%clk 0:03:00.5]} 3... e6 {[%clk 0:02:53.1]} 4.
Nd2 {[%clk 0:02:59]} 4... c5 {[%clk 0:02:53.3]} 5. Ngf3 {[%clk 0:02:55.9]} 5...
Nc6 {[%clk 0:02:52.7]} 6. c3 {[%clk 0:02:55.7]} 6... Bd6 {[%clk 0:02:52.5]} 7.
Bg3 {[%clk 0:02:56.1]} 7... O-O {[%clk 0:02:50.6]} 8. Bd3 {[%clk 0:02:55.9]}
8... Re8 {[%clk 0:02:49.7]} 9. Ne5 {[%clk 0:02:53.2]} 9... Bxe5 {[%clk 0:02:39]}
10. dxe5 {[%clk 0:02:51.4]} 10... Nd7 {[%clk 0:02:38.4]} 11. Nf3 {[%clk
0:02:43.8]} 11... h6 {[%clk 0:02:27.1]} 12. O-O {[%clk 0:02:42.6]} 12... Qc7
{[%clk 0:02:22.6]} 13. e4 {[%clk 0:02:16.9]} 13... Ndxe5 {[%clk 0:02:00.1]} 14.
Nxe5 {[%clk 0:02:16.6]} 14... Nxe5 {[%clk 0:01:59.7]} 15. Qh5 {[%clk 0:02:14.3]}
15... Qc6 {[%clk 0:01:01.6]} 16. Bxe5 {[%clk 0:02:01]} 16... dxe4 {[%clk
0:00:55.4]} 17. Qg4 {[%clk 0:01:53.1]} 17... g6 {[%clk 0:00:44]} 18. Bxe4 {[%clk
0:01:46.1]} 18... Qd7 {[%clk 0:00:41.4]} 19. Qh4 {[%clk 0:01:42.6]} 1-0

[Event "Early-Titled-Tuesday-Blitz-February-27-2024"]
[Site "Chess.com"]
[Date "2024.02.27"]
[Round "7"]
[White "HittingRookBottom"]
[Black "ClauSanLuis"]
[Result "0-1"]
[WhiteElo "2009"]
[BlackElo "2250"]
[TimeControl "180+1"]
[EndTime "9:13:56 PST"]
[Termination "ClauSanLuis won by resignation"]

1. e4 {[%clk 0:03:00.9]} 1... c5 {[%clk 0:02:59]} 2. Nf3 {[%clk 0:03:00.9]} 2...
Nc6 {[%clk 0:02:58.4]} 3. Bc4 {[%clk 0:03:01.4]} 3... e6 {[%clk 0:02:57.7]} 4.
O-O {[%clk 0:03:01.3]} 4... d5 {[%clk 0:02:57.5]} 5. exd5 {[%clk 0:03:01.5]}
5... exd5 {[%clk 0:02:58.4]} 6. Re1+ {[%clk 0:03:02.1]} 6... Be7 {[%clk
0:02:58.6]} 7. Bb5 {[%clk 0:03:02]} 7... Nf6 {[%clk 0:02:58.3]} 8. d3 {[%clk
0:02:58.9]} 8... O-O {[%clk 0:02:57.7]} 9. Bg5 {[%clk 0:02:59.1]} 9... h6 {[%clk
0:02:55.8]} 10. Bh4 {[%clk 0:02:57.5]} 10... Bg4 {[%clk 0:02:54.2]} 11. Bxc6
{[%clk 0:02:55.6]} 11... bxc6 {[%clk 0:02:53.8]} 12. h3 {[%clk 0:02:56.1]} 12...
Bh5 {[%clk 0:02:53.5]} 13. Nbd2 {[%clk 0:02:56.2]} 13... Rb8 {[%clk 0:02:50.1]}
14. b3 {[%clk 0:02:55.1]} 14... Rb4 {[%clk 0:02:46.1]} 15. Qc1 {[%clk
0:02:52.4]} 15... Qc7 {[%clk 0:02:42.2]} 16. c4 {[%clk 0:02:44.6]} 16... Bg6
{[%clk 0:02:35.9]} 17. Ne5 {[%clk 0:02:38.9]} 17... Bf5 {[%clk 0:02:36]} 18. Re3
{[%clk 0:02:20.7]} 18... Re8 {[%clk 0:02:32.1]} 19. Qe1 {[%clk 0:02:06]} 19...
g5 {[%clk 0:02:30.6]} 20. Bg3 {[%clk 0:02:05.5]} 20... Bd6 {[%clk 0:02:30.8]}
21. Ndf3 {[%clk 0:02:02.1]} 21... Rbb8 {[%clk 0:02:27.9]} 22. Qe2 {[%clk
0:01:41.1]} 22... Re6 {[%clk 0:02:26.9]} 23. Re1 {[%clk 0:01:40.9]} 23... Rbe8
{[%clk 0:02:27.4]} 24. Qb2 {[%clk 0:01:40.7]} 24... d4 {[%clk 0:02:25.5]} 25.
Nxd4 {[%clk 0:00:55.4]} 25... cxd4 {[%clk 0:02:23.1]} 26. Qxd4 {[%clk
0:00:55.5]} 26... Nh5 {[%clk 0:02:17.4]} 27. Bh2 {[%clk 0:00:52.1]} 27... f6
{[%clk 0:02:14.8]} 28. Nf3 {[%clk 0:00:46.8]} 28... Bxh2+ {[%clk 0:02:05.5]} 29.
Nxh2 {[%clk 0:00:46.1]} 29... Nf4 {[%clk 0:02:05.5]} 30. Rxe6 {[%clk 0:00:44.9]}
30... Rxe6 {[%clk 0:02:05.2]} 31. Rxe6 {[%clk 0:00:44.6]} 31... Bxe6 {[%clk
0:02:02.7]} 32. Nf3 {[%clk 0:00:44.5]} 32... Ne2+ {[%clk 0:02:02]} 0-1

[Event "Early-Titled-Tuesday-Blitz-February-27-2024"]
[Site "Chess.com"]
[Date "2024.02.27"]
[Round "7"]
[White "SirStrateg"]
[Black "WindWhistler11"]
[Result "1-0"]
[WhiteElo "2672"]
[BlackElo "2499"]
[TimeControl "180+1"]
[EndTime "9:14:02 PST"]
[Termination "SirStrateg won by resignation"]

1. d4 {[%clk 0:03:00.9]} 1... e6 {[%clk 0:02:59.6]} 2. Bf4 {[%clk 0:03:00.6]}
2... Nf6 {[%clk 0:02:55.7]} 3. e3 {[%clk 0:03:00.9]} 3... Bd6 {[%clk 0:02:56.2]}
4. Bxd6 {[%clk 0:02:59.6]} 4... cxd6 {[%clk 0:02:57.1]} 5. Nd2 {[%clk
0:02:59.4]} 5... d5 {[%clk 0:02:54.7]} 6. f4 {[%clk 0:02:56.2]} 6... d6 {[%clk
0:02:54.4]} 7. Ngf3 {[%clk 0:02:56.4]} 7... a6 {[%clk 0:02:54.6]} 8. Bd3 {[%clk
0:02:56.6]} 8... Nc6 {[%clk 0:02:53.1]} 9. c3 {[%clk 0:02:55.4]} 9... b5 {[%clk
0:02:52]} 10. a3 {[%clk 0:02:51.2]} 10... Bb7 {[%clk 0:02:47.6]} 11. O-O {[%clk
0:02:50.8]} 11... Qb6 {[%clk 0:02:42.9]} 12. Qe2 {[%clk 0:02:50.7]} 12... O-O
{[%clk 0:02:41.3]} 13. Rae1 {[%clk 0:02:44.7]} 13... Rfe8 {[%clk 0:02:39.6]} 14.
Kh1 {[%clk 0:02:35.6]} 14... Ne7 {[%clk 0:02:38]} 15. Qf2 {[%clk 0:02:27.6]}
15... a5 {[%clk 0:02:34.6]} 16. Qh4 {[%clk 0:02:21.3]} 16... Nf5 {[%clk
0:02:02.2]} 17. Qh3 {[%clk 0:02:14.5]} 17... h6 {[%clk 0:01:56]} 18. g4 {[%clk
0:02:11.9]} 18... Ne7 {[%clk 0:01:45.5]} 19. g5 {[%clk 0:02:12.2]} 19... hxg5
{[%clk 0:01:39.9]} 20. fxg5 {[%clk 0:02:11.4]} 20... Ne4 {[%clk 0:01:38.8]} 21.
g6 {[%clk 0:01:52.1]} 21... Nxg6 {[%clk 0:01:11.4]} 22. Bxe4 {[%clk 0:01:46.1]}
22... dxe4 {[%clk 0:01:10.4]} 23. Ng5 {[%clk 0:01:46.4]} 23... Re7 {[%clk
0:00:36.1]} 24. Qh7+ {[%clk 0:01:43.7]} 24... Kf8 {[%clk 0:00:36]} 25. Qxg6
{[%clk 0:01:43.7]} 1-0

[Event "Early-Titled-Tuesday-Blitz-February-27-2024"]
[Site "Chess.com"]
[Date "2024.02.27"]
[Round "7"]
[White "GAusal"]
[Black "noblerone"]
[Result "1/2-1/2"]
[WhiteElo "2313"]
[BlackElo "2493"]
[TimeControl "180+1"]
[EndTime "9:14:13 PST"]
[Termination "Game drawn by repetition"]

1. e4 {[%clk 0:03:00.9]} 1... c5 {[%clk 0:02:54.8]} 2. Nf3 {[%clk 0:03:00.6]}
2... e6 {[%clk 0:02:54.4]} 3. d4 {[%clk 0:02:57.5]} 3... cxd4 {[%clk 0:02:55.3]}
4. Nxd4 {[%clk 0:02:56.1]} 4... Qb6 {[%clk 0:02:52.8]} 5. Nc3 {[%clk 0:02:52]}
5... Bc5 {[%clk 0:02:52]} 6. Na4 {[%clk 0:02:48.6]} 6... Qa5+ {[%clk 0:02:52.1]}
7. c3 {[%clk 0:02:43.6]} 7... Bxd4 {[%clk 0:02:43.1]} 8. Qxd4 {[%clk 0:02:42.5]}
8... Nf6 {[%clk 0:02:41.8]} 9. Nc5 {[%clk 0:02:37.8]} 9... Nc6 {[%clk
0:02:37.5]} 10. Qd6 {[%clk 0:02:33.3]} 10... b6 {[%clk 0:02:36.5]} 11. b4 {[%clk
0:02:29.2]} 11... Nxb4 {[%clk 0:02:21.3]} 12. Nb3 {[%clk 0:02:25.5]} 12... Nc2+
{[%clk 0:02:00.7]} 13. Kd1 {[%clk 0:02:21.7]} 13... Qxc3 {[%clk 0:01:49.1]} 14.
Bd2 {[%clk 0:02:16.2]} 14... Qb2 {[%clk 0:01:08.4]} 15. Bd3 {[%clk 0:01:49.2]}
15... Nxa1 {[%clk 0:00:26.3]} 16. Bb4 {[%clk 0:01:47.3]} 16... Kd8 {[%clk
0:00:26.9]} 17. Qe7+ {[%clk 0:01:39.1]} 17... Kc7 {[%clk 0:00:27]} 18. Qd6+
{[%clk 0:01:36.2]} 18... Kd8 {[%clk 0:00:26.4]} 19. Qe7+ {[%clk 0:01:35.9]}
19... Kc7 {[%clk 0:00:27.2]} 20. Qd6+ {[%clk 0:01:31.4]} 20... Kd8 {[%clk
0:00:24.3]} 1/2-1/2

[Event "Early-Titled-Tuesday-Blitz-February-27-2024"]
[Site "Chess.com"]
[Date "2024.02.27"]
[Round "7"]
[White "lagunanivaria"]
[Black "HanSchut"]
[Result "1-0"]
[WhiteElo "2430"]
[BlackElo "2292"]
[TimeControl "180+1"]
[EndTime "9:14:15 PST"]
[Termination "lagunanivaria won by resignation"]

1. Nf3 {[%clk 0:02:55.7]} 1... Nf6 {[%clk 0:02:51]} 2. d3 {[%clk 0:02:55.9]}
2... g6 {[%clk 0:02:50.6]} 3. e4 {[%clk 0:02:55.6]} 3... c5 {[%clk 0:02:46.9]}
4. g3 {[%clk 0:02:54.8]} 4... Nc6 {[%clk 0:02:46.3]} 5. Bg2 {[%clk 0:02:55.3]}
5... Bg7 {[%clk 0:02:46.4]} 6. O-O {[%clk 0:02:56.2]} 6... O-O {[%clk
0:02:45.9]} 7. Re1 {[%clk 0:02:56.8]} 7... e6 {[%clk 0:02:46.5]} 8. c3 {[%clk
0:02:57.2]} 8... d5 {[%clk 0:02:46.8]} 9. e5 {[%clk 0:02:57.4]} 9... Nd7 {[%clk
0:02:46.9]} 10. d4 {[%clk 0:02:57.8]} 10... Qb6 {[%clk 0:02:37.4]} 11. h4 {[%clk
0:02:57.6]} 11... h6 {[%clk 0:02:25.4]} 12. Na3 {[%clk 0:02:50.3]} 12... Kh7
{[%clk 0:02:24.8]} 13. Nc2 {[%clk 0:02:50]} 13... a5 {[%clk 0:02:23.8]} 14. Rb1
{[%clk 0:02:50.4]} 14... a4 {[%clk 0:02:24]} 15. Be3 {[%clk 0:02:49.4]} 15...
cxd4 {[%clk 0:02:19.6]} 16. Ncxd4 {[%clk 0:02:44.8]} 16... Qd8 {[%clk
0:01:57.7]} 17. Nxc6 {[%clk 0:02:41.1]} 17... bxc6 {[%clk 0:01:58.6]} 18. Nd4
{[%clk 0:02:40.2]} 18... c5 {[%clk 0:01:28.5]} 19. Nc2 {[%clk 0:02:36.1]} 19...
Nxe5 {[%clk 0:01:20]} 20. Bxc5 {[%clk 0:02:35]} 20... Rg8 {[%clk 0:01:20.3]} 21.
Bd4 {[%clk 0:02:34.7]} 21... Nc6 {[%clk 0:01:11]} 22. Bxg7 {[%clk 0:02:34.3]}
22... Rxg7 {[%clk 0:01:10.7]} 23. c4 {[%clk 0:02:34.9]} 23... Ne7 {[%clk
0:01:02.4]} 24. cxd5 {[%clk 0:02:33.5]} 24... Nxd5 {[%clk 0:01:02.4]} 25. Ne3
{[%clk 0:02:25]} 25... Bb7 {[%clk 0:01:02.1]} 26. Nxd5 {[%clk 0:02:25.2]} 26...
exd5 {[%clk 0:01:02.4]} 27. Qd4 {[%clk 0:02:25.2]} 27... Qd7 {[%clk 0:01:00]}
28. Rbd1 {[%clk 0:02:25.2]} 28... Rd8 {[%clk 0:01:00.4]} 29. Re5 {[%clk
0:02:23.8]} 29... Qb5 {[%clk 0:00:54.1]} 30. h5 {[%clk 0:02:19.7]} 30... g5
{[%clk 0:00:22.5]} 31. Bxd5 {[%clk 0:02:15.1]} 31... f6 {[%clk 0:00:20.4]} 32.
Be4+ {[%clk 0:02:11.8]} 32... Bxe4 {[%clk 0:00:15.2]} 33. Qxe4+ {[%clk
0:02:11.4]} 33... f5 {[%clk 0:00:13.4]} 34. Qxf5+ {[%clk 0:02:12]} 1-0

[Event "Early-Titled-Tuesday-Blitz-February-27-2024"]
[Site "Chess.com"]
[Date "2024.02.27"]
[Round "7"]
[White "MasterKroket"]
[Black "vishwa_vijeta"]
[Result "1-0"]
[WhiteElo "2478"]
[BlackElo "2585"]
[TimeControl "180+1"]
[EndTime "9:14:22 PST"]
[Termination "MasterKroket won by resignation"]

1. e4 {[%clk 0:02:57.1]} 1... c5 {[%clk 0:02:59.7]} 2. Nf3 {[%clk 0:02:57.3]}
2... d6 {[%clk 0:02:59.1]} 3. d4 {[%clk 0:02:57.9]} 3... cxd4 {[%clk 0:03:00]}
4. Nxd4 {[%clk 0:02:58.6]} 4... Nf6 {[%clk 0:03:00.4]} 5. Nc3 {[%clk 0:02:59.3]}
5... g6 {[%clk 0:03:00.9]} 6. Be3 {[%clk 0:02:59.2]} 6... Bg7 {[%clk 0:03:00.7]}
7. f3 {[%clk 0:02:59.7]} 7... O-O {[%clk 0:03:00.3]} 8. Qd2 {[%clk 0:03:00.4]}
8... Nc6 {[%clk 0:03:00.4]} 9. Bc4 {[%clk 0:03:01.2]} 9... Bd7 {[%clk
0:03:00.4]} 10. h4 {[%clk 0:03:01.6]} 10... h5 {[%clk 0:02:55.9]} 11. O-O-O
{[%clk 0:03:01]} 11... Rc8 {[%clk 0:02:55.4]} 12. Bb3 {[%clk 0:03:00.4]} 12...
Ne5 {[%clk 0:02:54.9]} 13. Kb1 {[%clk 0:02:59.9]} 13... a5 {[%clk 0:02:45.8]}
14. Bg5 {[%clk 0:02:48.9]} 14... a4 {[%clk 0:02:40.9]} 15. Nxa4 {[%clk
0:02:45.3]} 15... Bxa4 {[%clk 0:02:34.8]} 16. Bxa4 {[%clk 0:02:45.3]} 16... Nc4
{[%clk 0:02:34.5]} 17. Qb4 {[%clk 0:02:40]} 17... Qc7 {[%clk 0:02:12.1]} 18. Bb3
{[%clk 0:02:38.1]} 18... Ne5 {[%clk 0:02:08.5]} 19. g4 {[%clk 0:02:20.3]} 19...
hxg4 {[%clk 0:01:55.5]} 20. f4 {[%clk 0:02:20.6]} 20... Nc6 {[%clk 0:01:44]} 21.
Nxc6 {[%clk 0:02:19.5]} 21... bxc6 {[%clk 0:01:44.9]} 22. e5 {[%clk 0:02:16.4]}
22... dxe5 {[%clk 0:01:40.8]} 23. fxe5 {[%clk 0:02:16.4]} 23... Nd5 {[%clk
0:01:40.6]} 24. Qxg4 {[%clk 0:02:11.9]} 24... Qxe5 {[%clk 0:01:39.4]} 25. Bc1
{[%clk 0:01:58.2]} 25... Nc3+ {[%clk 0:01:37.9]} 26. Ka1 {[%clk 0:01:50.7]}
26... Nxd1 {[%clk 0:01:37.8]} 27. Rxd1 {[%clk 0:01:51.6]} 27... Rcd8 {[%clk
0:01:36.9]} 28. Rg1 {[%clk 0:01:50]} 28... Rd4 {[%clk 0:01:33.2]} 29. Qxg6
{[%clk 0:01:48.4]} 29... Rb8 {[%clk 0:01:27.4]} 30. Qxf7+ {[%clk 0:01:33.6]}
30... Kh8 {[%clk 0:01:23.8]} 31. Rg5 {[%clk 0:01:33.2]} 1-0

[Event "Early-Titled-Tuesday-Blitz-February-27-2024"]
[Site "Chess.com"]
[Date "2024.02.27"]
[Round "7"]
[White "Natalya_Buksa"]
[Black "Mops_2004"]
[Result "0-1"]
[WhiteElo "2608"]
[BlackElo "2831"]
[TimeControl "180+1"]
[EndTime "9:14:26 PST"]
[Termination "Mops_2004 won by checkmate"]

1. d4 {[%clk 0:03:00.9]} 1... g6 {[%clk 0:03:00.3]} 2. Nc3 {[%clk 0:03:00.5]}
2... Bg7 {[%clk 0:03:00.9]} 3. Bf4 {[%clk 0:03:01]} 3... d6 {[%clk 0:03:01.1]}
4. e3 {[%clk 0:03:01.6]} 4... Nd7 {[%clk 0:03:00.7]} 5. h4 {[%clk 0:03:02]} 5...
e5 {[%clk 0:03:00.5]} 6. dxe5 {[%clk 0:03:01.1]} 6... dxe5 {[%clk 0:02:59.9]} 7.
Bg3 {[%clk 0:03:01.6]} 7... Ne7 {[%clk 0:02:47.1]} 8. Nf3 {[%clk 0:02:58.2]}
8... Nf5 {[%clk 0:02:46.6]} 9. Bh2 {[%clk 0:02:54.1]} 9... Nxh4 {[%clk
0:02:43.3]} 10. Bc4 {[%clk 0:02:29.8]} 10... Nxg2+ {[%clk 0:02:29.4]} 11. Kf1
{[%clk 0:02:29.6]} 11... Nh4 {[%clk 0:02:29.3]} 12. Qd5 {[%clk 0:02:07.3]} 12...
O-O {[%clk 0:02:28]} 13. Nxh4 {[%clk 0:02:06.3]} 13... Qxh4 {[%clk 0:02:27.6]}
14. Bxe5 {[%clk 0:02:01.1]} 14... Qe7 {[%clk 0:02:05.4]} 15. Bxg7 {[%clk
0:01:40.8]} 15... Kxg7 {[%clk 0:02:05.5]} 16. Qd4+ {[%clk 0:01:41.4]} 16... Qf6
{[%clk 0:02:04.2]} 17. Qd2 {[%clk 0:01:30.9]} 17... Nb6 {[%clk 0:01:53.4]} 18.
Bb3 {[%clk 0:01:26]} 18... Rd8 {[%clk 0:01:51]} 19. Qe2 {[%clk 0:01:21.4]} 19...
h5 {[%clk 0:01:47.7]} 20. Ne4 {[%clk 0:01:19]} 20... Qxb2 {[%clk 0:01:47]} 21.
Re1 {[%clk 0:01:14.6]} 21... Qe5 {[%clk 0:01:41.4]} 22. Ng3 {[%clk 0:01:11.1]}
22... Bg4 {[%clk 0:01:39.8]} 23. f3 {[%clk 0:00:57.4]} 23... Qxg3 {[%clk
0:01:39.8]} 24. fxg4 {[%clk 0:00:57.9]} 24... Rd6 {[%clk 0:01:39.3]} 25. g5
{[%clk 0:00:52.7]} 25... Qxg5 {[%clk 0:01:38.4]} 26. Qg2 {[%clk 0:00:51.3]}
26... Rf6+ {[%clk 0:01:35.8]} 27. Kg1 {[%clk 0:00:51.9]} 27... Qxg2+ {[%clk
0:01:34.9]} 28. Kxg2 {[%clk 0:00:52.8]} 28... c5 {[%clk 0:01:33.5]} 29. c3
{[%clk 0:00:51.7]} 29... Rd8 {[%clk 0:01:31.9]} 30. e4 {[%clk 0:00:50.3]} 30...
Rd2+ {[%clk 0:01:30.1]} 31. Kg3 {[%clk 0:00:50.5]} 31... Rd3+ {[%clk 0:01:27.9]}
32. Kh4 {[%clk 0:00:48.9]} 32... Rf4+ {[%clk 0:01:26.3]} 33. Kg5 {[%clk
0:00:49.5]} 33... Rg4# {[%clk 0:01:26.5]} 0-1

[Event "Early-Titled-Tuesday-Blitz-February-27-2024"]
[Site "Chess.com"]
[Date "2024.02.27"]
[Round "7"]
[White "SharapovEvgeny"]
[Black "Supergiuly"]
[Result "1-0"]
[WhiteElo "2511"]
[BlackElo "2321"]
[TimeControl "180+1"]
[EndTime "9:14:26 PST"]
[Termination "SharapovEvgeny won by resignation"]

1. e4 {[%clk 0:03:00]} 1... c5 {[%clk 0:02:56.4]} 2. Nf3 {[%clk 0:02:59.7]} 2...
g6 {[%clk 0:02:55.5]} 3. d4 {[%clk 0:02:59.2]} 3... cxd4 {[%clk 0:02:48.9]} 4.
Nxd4 {[%clk 0:02:58.2]} 4... Bg7 {[%clk 0:02:47.3]} 5. c4 {[%clk 0:02:57.9]}
5... d6 {[%clk 0:02:42.6]} 6. Nc3 {[%clk 0:02:57.6]} 6... Nc6 {[%clk 0:02:40.4]}
7. Be3 {[%clk 0:02:56.8]} 7... Nf6 {[%clk 0:02:39.6]} 8. Be2 {[%clk 0:02:56.7]}
8... O-O {[%clk 0:02:39]} 9. O-O {[%clk 0:02:56.3]} 9... a5 {[%clk 0:02:38.5]}
10. Qd2 {[%clk 0:02:56]} 10... a4 {[%clk 0:02:38]} 11. f3 {[%clk 0:02:56]} 11...
Qa5 {[%clk 0:02:37.1]} 12. Rfd1 {[%clk 0:02:56]} 12... Bd7 {[%clk 0:02:28]} 13.
Rac1 {[%clk 0:02:55.6]} 13... Rfc8 {[%clk 0:02:27]} 14. Ncb5 {[%clk 0:02:48.7]}
14... Qxd2 {[%clk 0:02:25.5]} 15. Rxd2 {[%clk 0:02:48.7]} 15... Nxd4 {[%clk
0:02:25.5]} 16. Nxd4 {[%clk 0:02:48.4]} 16... b5 {[%clk 0:02:22]} 17. Rdc2
{[%clk 0:02:43.8]} 17... b4 {[%clk 0:02:21.1]} 18. Nb5 {[%clk 0:02:40.5]} 18...
Bxb5 {[%clk 0:02:19.1]} 19. cxb5 {[%clk 0:02:40.3]} 19... Rxc2 {[%clk 0:02:17]}
20. Rxc2 {[%clk 0:02:40.3]} 20... Kf8 {[%clk 0:02:11.8]} 21. Rc4 {[%clk
0:02:34.2]} 21... b3 {[%clk 0:02:10.3]} 22. axb3 {[%clk 0:02:30.4]} 22... axb3
{[%clk 0:02:11.2]} 23. Rb4 {[%clk 0:02:29.1]} 23... d5 {[%clk 0:02:09.7]} 24.
Rxb3 {[%clk 0:02:15.9]} 24... dxe4 {[%clk 0:02:09.4]} 25. fxe4 {[%clk
0:02:16.3]} 25... Nxe4 {[%clk 0:02:06.3]} 26. b6 {[%clk 0:02:03.6]} 26... Ra1+
{[%clk 0:02:03.9]} 27. Bf1 {[%clk 0:02:03.5]} 27... Ra8 {[%clk 0:00:40.2]} 28.
b7 {[%clk 0:02:02]} 28... Rb8 {[%clk 0:00:38.5]} 29. Ba7 {[%clk 0:01:55.9]}
29... Be5 {[%clk 0:00:37.7]} 30. g3 {[%clk 0:01:43.3]} 30... Nc5 {[%clk
0:00:31.4]} 31. Bxc5 {[%clk 0:01:41.9]} 1-0